bitfinex/quotes_SOLUSD_20250930
["timestamp","ask_amount","ask_price","bid_price","bid_amount"]
[1759250348712,20.37,204.88,204.87,0.28432314]
[1759250349234,19.71,204.88,204.87,0.28432314]
[1759250349452,25.25043821,204.9,204.87,0.28432314]
[1759250349739,19.71,204.88,204.87,0.28432314]
[1759250351329,20.37,204.95,204.87,8.50611267]
[1759250351517,20.37,204.95,204.92,2.67064539]
[1759250351717,20.37,204.95,204.93,34.94]
[1759250352016,0.66,204.94,204.93,34.94]
[1759250352639,19.71,204.95,204.93,34.94]
[1759250352942,20.37,204.95,204.93,34.94]
[1759250353666,19.71,204.95,204.93,34.94]
[1759250354268,19.71,204.97,204.94,0.95432314]
[1759250354473,13.59559401,205.04,204.97,0.28432314]
[1759250354474,19.71,205.04,204.97,0.28432314]
[1759250354658,19.71,205.02,204.99,0.28432314]
[1759250354850,20.37,205.02,204.99,0.28432314]
[1759250355357,19.71,205.04,204.99,5.83250198]
[1759250355660,19.71,205.02,204.99,5.16250198]
[1759250356048,19.71,205.04,204.99,5.83250198]
[1759250356254,19.71,205.04,204.99,5.16250198]
[1759250356463,19.71,205.04,205.0,0.67]
[1759250356657,19.71,205.06,205.02,0.28432314]
[1759250356860,19.71,205.06,205.02,0.95432314]
[1759250357059,19.71,205.06,205.04,0.28432314]
[1759250357264,19.71,205.06,205.05,35.20432314]
[1759250357840,20.37,205.08,205.05,35.20432314]
[1759250358465,19.71,205.08,205.05,35.20432314]
[1759250358666,0.71,205.07,205.05,35.20432314]
[1759250358882,19.71,205.06,205.05,34.92]
[1759250359060,20.42,205.06,205.05,34.92]
[1759250359771,25.29662147,205.06,205.02,0.28432314]
[1759250359948,24.58662147,205.06,205.03,34.92]
[1759250360150,0.71,205.05,205.04,34.92]
[1759250360345,19.71,205.06,205.04,34.92]
[1759250361166,0.71,205.08,205.05,0.28432314]
[1759250361167,19.71,205.08,205.05,0.28432314]
[1759250361570,20.42,205.08,205.05,0.28432314]
[1759250363892,19.71,205.08,205.05,5.16101272]
[1759250364053,19.71,205.08,205.05,5.85101272]
[1759250364257,0.2,205.09,205.06,0.69]
[1759250364555,0.2,205.09,205.07,34.9]
[1759250365464,0.2,205.09,205.07,35.59]
[1759250365967,0.88,205.09,205.07,34.9]
[1759250366166,20.39,205.08,205.04,0.28432314]
[1759250366476,20.39,205.08,205.03,12.88319997]
[1759250366477,20.39,205.08,205.06,0.28432314]
[1759250367056,0.2,205.09,205.06,0.28432314]
[1759250367456,0.2,205.09,205.07,0.69]
[1759250367655,0.2,205.09,205.08,35.18432314]
[1759250367983,0.2,205.09,205.08,40.75046903]
[1759250368301,0.2,205.09,205.08,40.06046903]
[1759250368508,0.2,205.09,205.08,40.75046903]
[1759250372088,0.2,205.09,205.08,40.06046903]
[1759250372286,0.2,205.09,205.08,40.04046903]
[1759250372680,0.2,205.09,205.08,35.02216157]
[1759250372880,0.88,205.09,205.08,35.02216157]
[1759250373105,0.2,205.09,205.08,40.04046903]
[1759250373799,0.2,205.09,205.08,35.16432314]
[1759250374878,0.2,205.09,205.03,4.87732029]
[1759250374879,5.75590813,205.09,205.03,4.87732029]
[1759250375106,0.68,205.08,205.04,34.88]
[1759250375279,0.68,205.07,205.04,34.88]
[1759250375601,0.68,205.06,205.04,34.88]
[1759250376106,0.68,205.06,205.05,0.28432314]
[1759250376297,0.68,205.06,205.04,34.88]
[1759250376701,0.68,205.05,205.04,35.16432314]
[1759250377003,0.68,205.05,205.04,34.88]
[1759250377379,0.68,205.05,205.04,35.16432314]
[1759250377597,19.71,205.06,205.04,35.16432314]
[1759250377902,20.39,205.08,205.05,0.28432314]
[1759250378090,19.71,205.06,205.05,0.28432314]
[1759250378293,19.71,205.06,205.05,35.14432314]
[1759250379284,0.2,205.09,205.05,35.83432314]
[1759250379485,0.2,205.09,205.06,0.69]
[1759250379905,0.2,205.09,205.05,40.02118244]
[1759250380106,0.2,205.09,205.05,40.71118244]
[1759250380492,0.2,205.09,205.06,0.69]
[1759250381508,0.2,205.09,205.05,35.14432314]
[1759250381811,0.2,205.09,205.06,0.69]
[1759250382013,0.2,205.09,205.05,40.02111391]
[1759250382395,0.2,205.09,205.06,0.69]
[1759250383007,0.2,205.09,205.05,40.02111391]
[1759250383212,0.2,205.09,205.05,40.71111391]
[1759250384320,0.2,205.09,205.05,40.02111391]
[1759250384516,0.2,205.09,205.06,0.69]
[1759250384822,0.2,205.09,205.05,40.02111391]
[1759250385026,0.2,205.09,205.05,40.71111391]
[1759250385410,0.2,205.09,205.06,0.69]
[1759250386424,0.2,205.09,205.08,0.14216157]
[1759250386607,0.2,205.09,205.08,35.14432314]
[1759250387511,0.2,205.09,205.08,35.83432314]
[1759250388110,0.88,205.09,205.08,0.28432314]
[1759250388316,0.88,205.09,205.08,35.14432314]
[1759250388537,0.88,205.09,205.08,34.86]
[1759250389035,0.88,205.09,205.08,35.14432314]
[1759250390625,0.2,205.09,205.08,35.14432314]
[1759250391227,0.88,205.09,205.08,35.14432314]
[1759250392030,0.2,205.09,205.08,35.14432314]
[1759250394429,0.9,205.09,205.08,35.14432314]
[1759250394611,19.71,205.07,205.02,25.67753173]
[1759250394808,0.7,205.06,205.02,0.28432314]
[1759250395012,19.71,205.04,205.03,34.84]
[1759250395734,19.71,205.04,205.03,35.12432314]
[1759250396114,20.41,205.04,205.03,35.12432314]
[1759250398529,20.41,205.04,205.03,34.84]
[1759250399529,19.71,205.04,205.03,34.84]
[1759250399929,19.71,205.04,205.03,35.12432314]
[1759250402850,20.41,205.04,205.03,34.84]
[1759250403138,19.71,205.04,205.03,34.84]
[1759250403338,19.71,205.04,205.03,35.12432314]
[1759250405144,19.71,205.06,205.04,0.28432314]
[1759250405343,19.71,205.06,205.05,0.66]
[1759250406023,19.71,205.06,205.04,0.28432314]
[1759250408545,25.28616658,205.08,205.04,0.28432314]
[1759250408721,19.71,205.05,205.04,0.28432314]
[1759250408917,20.41,205.07,205.04,0.28432314]
[1759250409124,0.2,205.09,205.04,0.28432314]
[1759250409125,19.91,205.09,205.05,0.66]
[1759250409462,19.91,205.09,205.07,0.28432314]
[1759250409751,20.61,205.09,205.07,0.28432314]
[1759250411351,19.91,205.09,205.07,0.28432314]
[1759250411555,20.61,205.09,205.07,0.28432314]
[1759250412162,20.61,205.09,205.07,5.16069407]
[1759250412331,20.61,205.09,205.07,0.28432314]
[1759250413752,19.91,205.09,205.07,0.28432314]
[1759250414070,0.7,205.08,205.07,0.28432314]
[1759250414236,5.57614589,205.08,205.07,0.28432314]
[1759250414435,5.57614589,205.08,205.02,0.66]
[1759250414755,5.57614589,205.08,205.01,21.08432314]
[1759250414756,0.7,205.08,205.04,0.28432314]
[1759250414967,0.7,205.07,205.04,0.28432314]
[1759250416740,0.7,205.07,205.04,5.16133965]
[1759250416939,19.91,205.09,205.04,5.82133965]
[1759250417168,0.7,205.08,205.04,0.28432314]
[1759250417343,19.71,205.07,205.03,0.28432314]
[1759250417538,19.71,205.07,205.05,0.28432314]
[1759250417539,0.7,205.06,205.05,0.28432314]
[1759250419848,19.71,205.07,205.05,0.28432314]
[1759250420162,19.71,205.07,205.05,5.16113191]
[1759250420362,20.61,205.09,205.05,5.16113191]
[1759250420559,19.71,205.07,205.05,5.16113191]
[1759250420951,20.41,205.07,205.05,0.28432314]
[1759250421965,19.71,205.07,205.05,0.28432314]
[1759250422565,19.71,205.02,204.99,4.87822395]
[1759250422765,19.71,205.02,205.0,34.8]
[1759250423362,20.42,205.02,205.0,34.8]
[1759250423566,19.71,205.02,205.0,34.8]
[1759250423743,20.42,205.02,205.0,34.8]
[1759250423942,19.71,205.02,205.0,34.8]
[1759250424142,19.71,205.02,205.01,0.28432314]
[1759250424969,20.42,205.02,205.01,0.28432314]
[1759250425165,19.71,205.02,205.01,0.28432314]
[1759250428966,19.71,205.02,205.0,34.8]
[1759250429172,0.71,205.01,205.0,0.28432314]
[1759250429368,0.71,205.01,205.0,35.08432314]
[1759250429565,0.71,205.01,205.0,34.8]
[1759250429764,19.71,204.97,204.93,38.06]
[1759250429970,0.71,204.96,204.94,34.8]
[1759250430169,0.71,204.96,204.95,0.28432314]
[1759250430351,19.71,204.97,204.95,0.28432314]
[1759250430551,20.42,204.97,204.94,34.8]
[1759250430763,19.71,204.97,204.95,0.97432314]
[1759250430955,19.71,204.99,204.96,0.69]
[1759250431170,19.71,204.99,204.98,0.28432314]
[1759250431373,19.71,204.99,204.98,35.08432314]
[1759250431878,19.71,204.99,204.98,35.77432314]
[1759250432091,19.71,205.01,204.98,35.77432314]
[1759250432275,19.71,205.01,204.98,40.65284154]
[1759250432768,19.71,205.01,204.98,39.96284154]
[1759250433282,19.71,205.01,204.98,35.08432314]
[1759250433778,19.71,205.01,204.98,35.77432314]
[1759250434575,19.71,205.01,204.98,35.08432314]
[1759250435268,19.71,205.01,204.98,35.77432314]
[1759250435786,19.71,205.01,204.98,40.65283428]
[1759250436485,19.71,205.01,204.98,39.96283428]
[1759250436662,19.71,205.01,204.98,40.65283428]
[1759250437093,19.71,205.01,204.99,0.69]
[1759250437263,19.71,205.03,204.99,0.69]
[1759250437460,20.42,205.03,204.99,0.69]
[1759250437871,20.42,205.03,204.98,40.65283428]
[1759250438177,25.29734282,205.03,204.98,40.65283428]
[1759250438569,24.58734282,205.03,204.98,35.77432314]
[1759250438800,25.29734282,205.03,204.98,35.77432314]
[1759250439203,24.58734282,205.03,204.98,35.77432314]
[1759250439490,0.71,205.02,204.98,35.77432314]
[1759250439692,24.58734282,205.03,204.98,40.65282204]
[1759250439992,25.29734282,205.03,204.98,40.65282204]
[1759250440356,25.29734282,205.03,204.98,35.77432314]
[1759250440660,25.29734282,205.03,204.98,35.08432314]
[1759250440857,25.29734282,205.03,204.99,0.69]
[1759250441068,25.29734282,205.03,204.98,39.96281009]
[1759250441284,24.58734282,205.03,204.98,39.96281009]
[1759250441487,19.71,205.01,204.98,40.65281009]
[1759250441680,25.29734282,205.03,204.99,0.69]
[1759250441880,19.71,205.01,204.99,0.69]
[1759250442083,25.29734282,205.03,204.99,0.69]
[1759250442277,24.58734282,205.03,204.98,39.96281009]
[1759250442581,19.71,205.01,204.98,35.08432314]
[1759250442964,20.42,205.01,204.98,35.08432314]
[1759250443376,25.29784339,205.01,204.98,35.08432314]
[1759250443882,24.58784339,205.01,204.98,35.77432314]
[1759250444299,19.71,205.01,204.98,35.77432314]
[1759250444679,19.71,205.01,204.98,35.08432314]
[1759250444882,19.71,205.01,204.98,35.77432314]
[1759250445592,24.58736953,205.03,204.99,0.69]
[1759250445777,19.71,205.0,204.99,0.69]
[1759250445977,25.29736953,205.03,204.99,0.69]
[1759250446198,19.71,205.0,204.99,0.69]
[1759250446698,19.71,205.02,204.98,35.08432314]
[1759250446902,19.71,205.02,204.99,0.69]
[1759250448207,19.71,205.02,205.0,0.69]
[1759250448384,19.71,205.02,205.01,35.75432314]
[1759250448886,19.71,205.02,205.01,35.06432314]
[1759250450198,19.71,205.02,205.01,35.75432314]
[1759250450402,19.71,205.02,205.01,35.06432314]
[1759250450596,20.42,205.02,205.01,35.06432314]
[1759250451480,25.29757291,205.02,205.01,35.06432314]
[1759250451701,19.71,205.02,205.01,35.06432314]
[1759250453808,24.58757291,205.02,205.01,35.06432314]
[1759250454005,24.58757291,205.02,205.01,0.28432314]
[1759250454184,24.58757291,205.02,205.01,35.04432314]
[1759250454502,25.26757291,205.02,205.01,35.04432314]
[1759250455085,24.58757291,205.02,205.01,35.04432314]
[1759250457306,25.26757291,205.02,204.96,5.55896855]
[1759250457604,19.71,204.99,204.97,35.04432314]
[1759250457798,20.39,204.99,204.97,35.04432314]
[1759250457993,0.68,204.98,204.97,34.76]
[1759250458528,3.83611617,204.98,204.97,34.76]
[1759250458731,8.7146409,204.98,204.97,34.76]
[1759250459639,6.04713999,204.98,204.97,34.76]
[1759250460632,8.7146409,204.98,204.97,34.76]
[1759250462178,8.7146409,204.98,204.72,132.8]
[1759250462179,19.71,204.91,204.82,24.41146791]
[1759250462325,0.68,204.9,204.82,0.68]
[1759250462641,19.71,204.84,204.83,35.44]
[1759250462810,19.71,204.84,204.83,34.76]
[1759250463007,19.71,204.84,204.83,35.44]
[1759250463211,19.71,204.86,204.83,35.44]
[1759250463428,19.71,204.86,204.84,0.68]
[1759250463842,19.71,204.88,204.85,0.68]
[1759250464136,19.71,204.86,204.85,0.68]
[1759250464541,19.71,204.88,204.85,0.68]
[1759250465040,24.59094136,204.88,204.86,0.68]
[1759250465351,24.59094136,204.88,204.87,35.04432314]
[1759250466053,27.93844227,204.88,204.87,34.76]
[1759250466931,24.59094136,204.88,204.87,34.76]
[1759250467342,19.71,204.85,204.81,0.68]
[1759250467540,19.71,204.85,204.83,0.28432314]
[1759250468071,19.71,204.85,204.83,0.96432314]
[1759250468753,24.59176875,204.85,204.83,0.28432314]
[1759250468962,24.59176875,204.85,204.83,0.14216157]
[1759250469152,19.71,204.85,204.83,0.14216157]
[1759250469354,20.39,204.85,204.83,0.14216157]
[1759250469959,20.39,204.85,204.83,0.28432314]
[1759250470140,25.2716344,204.85,204.83,0.28432314]
[1759250471240,24.5916344,204.85,204.83,0.28432314]
[1759250472670,19.71,204.85,204.83,0.28432314]
[1759250472959,19.71,204.85,204.83,0.96432314]
[1759250473561,19.71,204.85,204.83,0.28432314]
[1759250473865,19.71,204.85,204.83,0.96432314]
[1759250474952,24.59172733,204.85,204.82,34.76]
[1759250475155,0.68,204.84,204.82,34.76]
[1759250475361,25.27172733,204.85,204.82,34.76]
[1759250475750,19.71,204.83,204.82,35.04432314]
[1759250475956,20.39,204.83,204.82,35.04432314]
[1759250476666,25.27209734,204.83,204.82,35.04432314]
[1759250476860,24.59209734,204.83,204.82,35.04432314]
[1759250479864,19.71,204.61,204.6,35.44]
[1759250480248,19.71,204.61,204.52,38.1]
[1759250480249,19.71,204.56,204.52,12.2223896]
[1759250480560,19.71,204.57,204.52,33.76]
[1759250480763,19.71,204.57,204.52,38.64948267]
[1759250480936,19.71,204.57,204.53,0.68]
[1759250481141,19.71,204.61,204.54,35.44]
[1759250481366,19.71,204.63,204.55,0.68]
[1759250481660,19.71,204.63,204.55,21.48]
[1759250481844,19.71,204.63,204.56,35.44]
[1759250482041,19.71,204.63,204.57,0.82216157]
[1759250482251,19.71,204.66,204.58,34.8]
[1759250482453,20.19861526,204.66,204.59,0.96432314]
[1759250482763,19.71,204.65,204.61,0.28432314]
[1759250482952,19.71,204.65,204.62,0.72]
[1759250483262,19.71,204.65,204.63,35.82432314]
[1759250483563,0.48861526,204.69,204.63,49.41991715]
[1759250483778,0.65,204.74,204.63,49.41991715]
[1759250483779,19.71,204.72,204.63,49.41991715]
[1759250483942,37.39610805,204.64,204.63,49.41991715]
[1759250484260,19.71,204.72,204.64,13.87991715]
[1759250484568,19.71,204.7,204.66,0.28432314]
[1759250484749,19.71,204.7,204.66,5.17039813]
[1759250484953,20.36,204.7,204.68,0.28432314]
[1759250485260,19.71,204.7,204.68,0.28432314]
[1759250486151,0.65,204.69,204.68,0.28432314]
[1759250486465,0.65,204.69,204.68,35.16432314]
[1759250486760,19.71,204.7,204.68,35.16432314]
[1759250488440,19.61317845,204.7,204.68,35.16432314]
[1759250489960,20.26317845,204.7,204.68,35.16432314]
[1759250490164,0.65,204.69,204.68,35.16432314]
[1759250490641,19.61317845,204.66,204.57,50.34033927]
[1759250490843,19.61317845,204.64,204.58,53.36344413]
[1759250491063,0.65,204.63,204.58,53.36344413]
[1759250491260,19.61317845,204.64,204.58,53.36344413]
[1759250491445,19.61317845,204.64,204.59,0.28432314]
[1759250491645,19.61317845,204.64,204.58,53.36344413]
[1759250491858,19.61317845,204.61,204.59,0.14216157]
[1759250492645,19.61317845,204.61,204.59,0.28432314]
[1759250492855,19.61317845,204.61,204.58,34.88]
[1759250493041,19.61317845,204.61,204.59,0.14216157]
[1759250493451,19.61317845,204.63,204.59,13.73775558]
[1759250493667,19.61317845,204.63,204.6,0.14216157]
[1759250494265,0.65,204.62,204.6,0.14216157]
[1759250494449,20.26317845,204.61,204.6,0.14216157]
[1759250495150,19.61317845,204.61,204.6,0.14216157]
[1759250495870,19.61317845,204.59,204.48,15.02527218]
[1759250496071,19.61317845,204.57,204.54,13.59559401]
[1759250496256,19.61317845,204.57,204.55,34.86]
[1759250496572,20.26317845,204.59,204.55,34.86]
[1759250496758,20.26317845,204.59,204.56,0.28432314]
[1759250496958,19.61317845,204.57,204.55,34.86]
[1759250497766,19.61317845,204.57,204.55,39.74858819]
[1759250498071,19.61317845,204.57,204.56,0.28432314]
[1759250498566,19.61317845,204.59,204.56,0.28432314]
[1759250498752,19.61317845,204.57,204.56,0.28432314]
[1759250499146,25.15148074,204.57,204.5,20.8]
[1759250499356,0.48861526,204.6,204.51,34.84]
[1759250499357,19.61317845,204.55,204.51,34.84]
[1759250499555,19.61317845,204.55,204.52,34.86]
[1759250499768,19.61317845,204.57,204.53,0.28]
[1759250500552,19.61317845,204.59,204.53,13.59559401]
[1759250501052,19.61317845,204.59,204.53,18.48465908]
[1759250501253,19.61317845,204.57,204.53,4.88906507]
[1759250501653,20.26317845,204.57,204.53,4.88906507]
[1759250501851,20.26317845,204.57,204.54,0.14216157]
[1759250502063,20.26317845,204.57,204.56,0.28432314]
[1759250502457,20.26317845,204.57,204.55,34.88]
[1759250502658,20.26317845,204.57,204.56,0.28432314]
[1759250504178,20.26317845,204.57,204.55,34.88]
[1759250504350,0.65,204.56,204.55,34.88]
[1759250504975,19.61317845,204.54,204.53,0.28432314]
[1759250505180,20.26317845,204.54,204.53,34.86]
[1759250505358,19.61317845,204.56,204.53,39.74925829]
[1759250505546,20.0,204.69,204.62,13.59559401]
[1759250505547,19.61317845,204.69,204.62,13.59559401]
[1759250505876,19.61317845,204.69,204.64,0.28432314]
[1759250505877,0.65,204.68,204.64,0.28432314]
[1759250506044,20.26317845,204.67,204.64,0.28432314]
[1759250506979,19.61317845,204.67,204.64,0.28432314]
[1759250507195,19.61317845,204.69,204.64,0.28432314]
[1759250507382,19.61317845,204.69,204.63,34.86]
[1759250507383,0.65,204.68,204.66,0.28432314]
[1759250507557,19.61317845,204.69,204.67,35.0]
[1759250507753,19.61317845,204.67,204.64,0.28432314]
[1759250507960,19.61317845,204.65,204.56,14.67961735]
[1759250508155,19.61317845,204.63,204.57,39.90830229]
[1759250508353,20.26317845,204.63,204.57,39.90830229]
[1759250508968,20.26317845,204.63,204.58,0.28432314]
[1759250509163,0.65,204.62,204.6,0.28432314]
[1759250509371,19.61317845,204.63,204.61,35.02]
[1759250509770,4.8866171,204.65,204.62,0.28432314]
[1759250509771,19.61317845,204.65,204.62,0.28432314]
[1759250510196,20.26317845,204.65,204.62,0.28432314]
[1759250510651,19.61317845,204.65,204.62,0.28432314]
[1759250511069,19.61317845,204.67,204.63,4.88686898]
[1759250511270,19.61317845,204.67,204.64,0.14216157]
[1759250511505,19.61317845,204.67,204.66,0.14216157]
[1759250511678,0.65,204.69,204.66,0.14216157]
[1759250511679,20.26317845,204.69,204.66,0.14216157]
[1759250511881,20.26317845,204.69,204.65,35.08]
[1759250512079,19.61317845,204.69,204.66,0.28432314]
[1759250512271,20.26317845,204.69,204.66,0.28432314]
[1759250512690,19.61317845,204.69,204.66,0.28432314]
[1759250513206,19.61317845,204.69,204.66,5.17024677]
[1759250513407,20.33317845,204.69,204.66,5.17024677]
[1759250513897,19.61317845,204.69,204.66,5.17024677]
[1759250514201,0.72,204.68,204.66,5.17024677]
[1759250514400,20.33317845,204.71,204.66,5.17024677]
[1759250514804,19.61317845,204.71,204.66,17.66562837]
[1759250515099,20.8,204.72,204.66,17.38562837]
[1759250515308,19.61317845,204.77,204.68,0.28432314]
[1759250515484,63.60959387,204.81,204.73,20.8]
[1759250515667,62.88959387,204.81,204.74,49.23991715]
[1759250515873,19.61317845,204.81,204.74,49.23991715]
[1759250517280,19.61317845,204.8,204.76,13.87991715]
[1759250518078,19.61317845,204.8,204.76,14.15991715]
[1759250518813,20.33317845,204.82,204.78,0.28432314]
[1759250519114,20.8,204.85,204.78,0.28432314]
[1759250519115,20.33317845,204.85,204.78,14.15991715]
[1759250519288,20.33317845,204.85,204.8,0.28432314]
[1759250519491,0.72,204.84,204.82,0.28432314]
[1759250519692,0.72,204.83,204.82,0.28432314]
[1759250520586,19.61317845,204.85,204.82,0.28432314]
[1759250520790,19.61317845,204.87,204.82,13.87991715]
[1759250521012,19.61317845,204.89,204.82,13.87991715]
[1759250521213,20.33317845,204.86,204.83,35.08]
[1759250521514,0.72,204.85,204.84,0.28432314]
[1759250521892,0.72,204.85,204.8,4.88279666]
[1759250522096,20.33317845,204.84,204.82,0.28432314]
[1759250522296,0.72,204.83,204.82,0.28432314]
[1759250523394,0.72,204.83,204.82,5.16665884]
[1759250523617,0.72,204.83,204.82,0.28432314]
[1759250523911,19.61317845,204.84,204.82,5.16665884]
[1759250524093,19.61317845,204.86,204.82,19.04225285]
[1759250524286,19.61317845,204.89,204.84,0.28432314]
[1759250524489,19.61317845,204.89,204.85,35.06]
[1759250524711,0.72,204.93,204.86,0.28432314]
[1759250524907,0.72,204.93,204.88,0.28432314]
[1759250525116,0.72,204.93,204.9,0.28432314]
[1759250525310,0.72,204.93,204.9,5.16475261]
[1759250525489,20.53317845,204.91,204.9,35.06]
[1759250526113,20.53317845,204.91,204.85,13.59559401]
[1759250526317,0.72,204.9,204.86,35.12]
[1759250526496,0.72,204.89,204.87,35.12]
[1759250526698,19.81317845,204.91,204.87,35.12]
[1759250526923,19.61317845,204.88,204.87,35.12]
[1759250527225,19.61317845,204.88,204.79,13.59559401]
[1759250527226,19.61317845,204.86,204.79,13.59559401]
[1759250527515,19.61317845,204.84,204.8,35.14]
[1759250527693,0.72,204.83,204.8,35.14]
[1759250527895,0.72,204.82,204.8,35.14]
[1759250528318,19.61317845,204.81,204.8,35.14]
[1759250528697,19.61317845,204.83,204.8,35.28216157]
[1759250528895,19.61317845,204.78,204.71,12.21219974]
[1759250529093,19.61317845,204.78,204.7,4.88519785]
[1759250529094,0.72,204.77,204.7,4.88519785]
[1759250529323,20.33317845,204.76,204.7,13.59559401]
[1759250529526,19.61317845,204.73,204.71,35.18]
[1759250529906,20.33317845,204.73,204.69,43.0054306]
[1759250530220,0.72,204.72,204.69,38.12]
[1759250530432,20.33317845,204.71,204.7,35.18]
[1759250532008,20.33317845,204.71,204.7,40.06519785]
[1759250532219,20.33317845,204.71,204.7,35.18]
[1759250535746,20.33317845,204.71,204.65,12.21550116]
[1759250535747,19.61317845,204.67,204.61,4.88712101]
[1759250536060,19.61317845,204.62,204.61,4.88712101]
[1759250536264,19.61317845,204.62,204.61,40.35144415]
[1759250536442,19.61317845,204.62,204.61,40.06712101]
[1759250536758,19.61317845,204.62,204.61,40.35144415]
[1759250537063,19.61317845,204.62,204.61,40.20928258]
[1759250537579,19.61317845,204.64,204.62,0.14216157]
[1759250537875,19.61317845,204.64,204.62,5.17140654]
[1759250538357,19.61317845,204.66,204.62,5.84140654]
[1759250538557,19.61317845,204.68,204.63,0.67]
[1759250538751,19.61317845,204.68,204.64,35.16]
[1759250539563,0.65,204.67,204.64,35.16]
[1759250539770,20.26317845,204.66,204.65,35.16]
[1759250540876,19.61317845,204.66,204.65,35.16]
[1759250541667,19.61317845,204.66,204.65,40.04639139]
[1759250541982,19.61317845,204.66,204.65,35.16]
[1759250543071,19.61317845,204.66,204.65,40.04639139]
[1759250543283,20.29317845,204.66,204.65,35.16]
[1759250543776,19.61317845,204.66,204.65,35.16]
[1759250543976,20.29317845,204.66,204.65,35.16]
[1759250544155,20.29317845,204.66,204.59,0.99432314]
[1759250544156,19.61317845,204.64,204.59,0.28432314]
[1759250544354,19.61317845,204.64,204.6,34.66]
[1759250544555,0.68,204.63,204.6,34.66]
[1759250545683,0.68,204.63,204.6,39.54750705]
[1759250546087,20.29317845,204.62,204.6,34.66]
[1759250546286,4.54279969,204.66,204.56,4.88834007]
[1759250546287,19.61317845,204.59,204.56,4.88834007]
[1759250546464,19.61317845,204.59,204.57,35.16]
[1759250547479,0.68,204.58,204.57,35.16]
[1759250548754,19.61317845,204.59,204.57,35.16]
[1759250549071,0.68,204.58,204.57,35.16]
[1759250549768,5.56806334,204.58,204.57,35.16]
[1759250550875,0.68,204.58,204.57,35.16]
[1759250551181,5.56806334,204.58,204.57,35.16]
[1759250551561,0.68,204.58,204.57,35.16]
[1759250552079,0.68,204.58,204.49,38.12]
[1759250552080,19.61317845,204.53,204.49,38.12]
[1759250552383,19.61317845,204.53,204.51,35.14]
[1759250553164,20.29317845,204.53,204.51,35.14]
[1759250553779,19.61317845,204.51,204.5,0.1]
[1759250553977,19.61317845,204.51,204.5,35.22]
[1759250554166,20.29317845,204.51,204.5,35.22]
[1759250554368,19.61317845,204.51,204.5,35.22]
[1759250555177,20.29317845,204.51,204.5,0.1]
[1759250555382,19.61317845,204.51,204.5,35.28]
[1759250555799,19.61317845,204.51,204.5,40.16997555]
[1759250557980,19.61317845,204.51,204.5,40.16997555]
[1759250558982,19.61317845,204.51,204.5,35.28]
[1759250559682,19.61317845,204.51,204.5,35.24]
[1759250560982,19.61317845,204.51,204.5,40.12997555]
[1759250561174,19.61317845,204.51,204.5,35.24]
[1759250561797,19.61317845,204.51,204.5,40.12997555]
[1759250562000,19.61317845,204.51,204.5,35.24]
[1759250562172,19.61317845,204.51,204.5,40.12997555]
[1759250562684,19.61317845,204.51,204.5,46.85302062]
[1759250562896,19.61317845,204.51,204.5,47.56302062]
[1759250563063,19.61317845,204.51,204.5,46.85302062]
[1759250563262,19.61317845,204.53,204.5,46.85302062]
[1759250563503,19.61317845,204.53,204.52,6.72304507]
[1759250563676,19.61317845,204.53,204.52,41.84304507]
[1759250563881,19.61317845,204.53,204.52,35.12]
[1759250564074,19.61317845,204.53,204.52,41.84304507]
[1759250564281,19.61317845,204.53,204.52,42.55304507]
[1759250564472,19.61317845,204.55,204.52,41.84304507]
[1759250564676,19.61317845,204.53,204.52,35.12]
[1759250565092,19.61317845,204.55,204.52,35.12]
[1759250565299,20.29317845,204.55,204.52,35.12]